bitfinex/quotes_BTCUSD_20220212
["timestamp","ask_amount","ask_price","bid_price","bid_amount"]
[1644695120596,0.0525,42673.0,42665.0,0.29702765]
[1644695120796,0.59046091,42678.0,42672.0,0.3275]
[1644695120996,0.59046091,42678.0,42673.0,0.327489]
[1644695121197,0.53185991,42678.0,42672.0,0.058582]
[1644695121397,0.53185991,42678.0,42676.0,0.25475761]
[1644695123056,0.53185991,42678.0,42675.0,0.06750337]
[1644695123254,0.53185991,42678.0,42675.0,0.06806667]
[1644695124255,0.53185991,42678.0,42675.0,0.06750337]
[1644695124456,0.53185991,42678.0,42676.0,0.26913169]
[1644695125058,0.07207261,42677.0,42676.0,0.26913169]
[1644695125259,0.14414522,42677.0,42676.0,0.26913169]
[1644695126057,0.47164522,42677.0,42676.0,0.26913169]
[1644695126259,0.14414522,42677.0,42676.0,0.26913169]
[1644695126493,0.47164522,42677.0,42675.0,0.06750337]
[1644695126694,0.14414522,42677.0,42675.0,0.06750337]
[1644695127096,0.14414522,42677.0,42674.0,0.00050643]
[1644695127499,0.14414522,42677.0,42676.0,0.25898512]
[1644695128296,0.14414522,42677.0,42676.0,0.33434167]
[1644695128699,0.47164522,42677.0,42676.0,0.33434167]
[1644695129099,0.14414522,42677.0,42676.0,0.33434167]
[1644695129297,0.47164522,42677.0,42676.0,0.33434167]
[1644695130002,0.14414522,42677.0,42676.0,0.33434167]
[1644695130255,0.47164522,42677.0,42676.0,0.33434167]
[1644695130449,0.14414522,42677.0,42676.0,0.33434167]
[1644695133050,0.14414522,42677.0,42676.0,0.25898512]
[1644695134195,0.47164522,42677.0,42676.0,0.25898512]
[1644695134596,0.14414522,42677.0,42676.0,0.325846]
[1644695134796,0.14414522,42677.0,42676.0,0.312957]
[1644695137297,0.47164522,42677.0,42676.0,0.24609612]
[1644695137499,0.14414522,42677.0,42676.0,0.24609612]
[1644695139148,0.47164522,42677.0,42676.0,0.24609612]
[1644695139348,0.14414522,42677.0,42676.0,0.24609612]
[1644695140751,0.14414522,42677.0,42676.0,0.24746573]
[1644695141354,0.14414522,42677.0,42676.0,0.31444967]
[1644695142799,0.14414522,42677.0,42676.0,0.24746573]
[1644695143800,0.47164522,42677.0,42676.0,0.24746573]
[1644695144002,0.47164522,42677.0,42676.0,0.00136961]
[1644695145004,0.14414522,42677.0,42676.0,0.00136961]
[1644695145264,0.14414522,42677.0,42676.0,0.20495745]
[1644695145955,0.14414522,42677.0,42676.0,0.2770161]
[1644695147454,0.14414522,42677.0,42676.0,0.07342826]
[1644695147656,0.14414522,42677.0,42676.0,0.00136961]
[1644695149097,0.47164522,42677.0,42676.0,0.00136961]
[1644695149798,0.00273921,42674.0,42669.0,0.19544151]
[1644695150498,0.14414522,42673.0,42669.0,0.19544151]
[1644695150900,0.14414522,42673.0,42669.0,0.19595545]
[1644695151899,0.14414522,42673.0,42669.0,0.19544151]
[1644695152097,0.14414522,42673.0,42669.0,0.19595546]
[1644695153151,0.14414522,42673.0,42669.0,0.19544151]
[1644695153351,0.14414522,42673.0,42669.0,0.19595546]
[1644695154352,0.14414522,42673.0,42669.0,0.19544151]
[1644695154551,0.14414522,42673.0,42669.0,0.19595546]
[1644695155552,0.00273921,42674.0,42669.0,0.19544151]
[1644695155953,0.14414522,42672.0,42669.0,0.19544151]
[1644695157206,0.20274122,42672.0,42665.0,0.27178977]
[1644695157504,0.20274122,42672.0,42664.0,0.0525]
[1644695158103,0.20274122,42672.0,42666.0,0.22725276]
[1644695158303,0.20274122,42672.0,42666.0,0.22782586]
[1644695159203,0.20274122,42672.0,42666.0,0.22725276]
[1644695159403,0.20274122,42672.0,42667.0,0.00057309]
[1644695159803,0.3275,42670.0,42667.0,0.00057309]
[1644695160461,0.3275,42670.0,42661.0,0.00016872]
[1644695160660,0.3275,42670.0,42656.0,0.29683828]
[1644695160661,0.58739982,42670.0,42657.0,0.00016872]
[1644695160863,0.3275,42665.0,42657.0,0.00016872]
[1644695161063,0.07207261,42661.0,42657.0,0.00016872]
[1644695161263,0.14414522,42661.0,42656.0,0.08256537]
[1644695161864,0.62769905,42660.0,42656.0,0.00016872]
[1644695162063,0.62769905,42660.0,42655.0,0.26005064]
[1644695162064,0.3275,42660.0,42655.0,0.26005064]
[1644695162264,0.14414522,42661.0,42655.0,0.26005064]
[1644695162465,0.3275,42660.0,42655.0,0.26005064]
[1644695162864,0.3275,42659.0,42655.0,0.26005064]
[1644695163065,0.14414522,42661.0,42655.0,0.26005064]
[1644695163267,0.63124659,42660.0,42655.0,0.26059973]
[1644695163864,0.63124659,42660.0,42655.0,0.00054909]
[1644695164308,0.63124659,42660.0,42651.0,0.00016872]
[1644695164507,0.63124659,42660.0,42655.0,0.00054909]
[1644695165508,0.63124659,42660.0,42654.0,0.00016872]
[1644695165807,0.32849734,42660.0,42655.0,0.00054928]
[1644695166409,0.14414522,42658.0,42655.0,0.00054928]
[1644695166610,0.14414522,42658.0,42654.0,0.00016872]
[1644695166611,0.3275,42657.0,42654.0,0.00016872]
[1644695166809,0.3275,42657.0,42655.0,0.00054928]
[1644695167010,0.3275,42656.0,42655.0,0.00054928]
[1644695168258,0.3275,42656.0,42652.0,0.00016872]
[1644695168460,0.3275,42656.0,42651.0,0.00016872]
[1644695168856,0.3275,42654.0,42651.0,0.00016872]
[1644695169056,0.0525,42653.0,42650.0,1.38316872]
[1644695169260,0.3275,42652.0,42650.0,1.38316872]
[1644695169458,0.38,42652.0,42650.0,1.45137153]
[1644695170261,0.38,42652.0,42650.0,1.383]
[1644695171804,0.14414522,42651.0,42650.0,1.383]
[1644695172002,0.47164522,42651.0,42650.0,1.383]
[1644695172502,0.47164522,42651.0,42650.0,1.378]
[1644695175855,0.47264521,42651.0,42650.0,1.378]
[1644695181108,0.42538069,42651.0,42650.0,1.378]
[1644695181307,0.39957261,42651.0,42650.0,1.378]
[1644695181508,0.42538069,42651.0,42650.0,1.378]
[1644695182113,0.3926,42667.0,42651.0,0.7]
[1644695182313,0.3926,42667.0,42653.0,0.058608]
[1644695182509,0.3926,42667.0,42659.0,0.06937388]
[1644695182770,0.14780659,42658.0,42655.0,0.3]
[1644695182959,0.14780659,42658.0,42656.0,0.0525]
[1644695184060,0.14780659,42658.0,42657.0,0.07734221]
[1644695184360,0.14780659,42658.0,42657.0,0.38408322]
[1644695184762,0.14780659,42658.0,42657.0,0.30674101]
[1644695185761,0.14780659,42658.0,42657.0,0.0525]
[1644695187102,0.14780659,42658.0,42657.0,0.30824407]
[1644695188904,0.14780659,42658.0,42657.0,0.0525]
[1644695190768,0.14780659,42658.0,42657.0,0.12807452]
[1644695195008,0.14780659,42658.0,42657.0,0.45557452]
[1644695196407,0.14780659,42658.0,42657.0,0.49349901]
[1644695196607,0.14780659,42658.0,42657.0,0.45557452]
[1644695196807,0.14780659,42658.0,42657.0,0.50377997]
[1644695197008,0.14780659,42658.0,42657.0,0.12807452]
[1644695197207,0.14780659,42658.0,42657.0,0.45557452]
[1644695197857,0.14780659,42658.0,42657.0,0.49511699]
[1644695198456,0.14780659,42658.0,42657.0,0.45557452]
[1644695198857,0.14280659,42658.0,42657.0,0.45557452]
[1644695199257,0.14280659,42658.0,42657.0,0.12807452]
[1644695200658,0.14280659,42658.0,42657.0,0.19608252]
[1644695201160,0.14280659,42658.0,42657.0,0.45557452]
[1644695201362,0.14280659,42658.0,42657.0,0.12807452]
[1644695201605,0.14280659,42658.0,42657.0,0.00136652]
[1644695201606,0.47030659,42658.0,42657.0,0.00136652]
[1644695202807,0.47030659,42658.0,42657.0,0.07207866]
[1644695204504,0.47030659,42658.0,42657.0,0.00136652]
[1644695205363,0.3275,42657.0,42655.0,0.00058007]
[1644695206362,0.3275,42657.0,42650.0,1.37383524]
[1644695206562,0.3275,42657.0,42654.0,0.00058008]
[1644695207665,0.3275,42657.0,42655.0,0.06529795]
[1644695207868,0.3275,42657.0,42653.0,0.00058009]
[1644695207869,0.30377044,42656.0,42653.0,0.00058009]
[1644695208064,0.3275,42655.0,42653.0,0.00058009]
[1644695208263,0.3275,42654.0,42653.0,0.00058009]
[1644695208464,0.63544806,42654.0,42653.0,0.00058009]
[1644695209005,0.63544806,42654.0,42651.0,0.00058011]
[1644695209006,0.25270714,42653.0,42651.0,0.00058011]
[1644695209207,0.3275,42652.0,42651.0,0.00058011]
[1644695210008,0.3275,42652.0,42650.0,1.37383524]
[1644695212409,0.0525,42651.0,42650.0,1.37383524]
[1644695212611,0.38,42651.0,42650.0,1.37383524]
[1644695212859,0.53,42651.0,42650.0,0.84154691]
[1644695213058,0.48,42651.0,42650.0,0.84154691]
[1644695214056,0.38,42651.0,42650.0,0.84154691]
[1644695215857,0.48,42651.0,42650.0,0.48969091]
[1644695216059,0.53,42651.0,42650.0,0.48969091]
[1644695216702,0.53,42651.0,42650.0,0.44969091]
[1644695217905,0.48,42651.0,42650.0,0.44969091]
[1644695218707,0.53,42651.0,42650.0,0.44969091]
[1644695218907,0.48,42651.0,42650.0,0.44969091]
[1644695220258,0.53,42651.0,42650.0,0.44969091]
[1644695221453,0.38,42651.0,42650.0,0.44969091]
[1644695221657,0.3275,42651.0,42650.0,0.44969091]
[1644695221853,0.3275,42651.0,42650.0,0.53739697]
[1644695222256,0.3275,42653.0,42650.0,0.53739697]
[1644695222453,0.3275,42653.0,42650.0,0.73578075]
[1644695222654,0.3275,42653.0,42650.0,0.53739697]
[1644695223755,0.3275,42653.0,42650.0,0.53755594]
[1644695224505,0.058635,42655.0,42650.0,0.53755594]
[1644695224706,0.14280659,42658.0,42650.0,0.53755594]
[1644695224707,0.14280659,42658.0,42650.0,0.53739697]
[1644695224906,0.14280659,42658.0,42650.0,0.59616994]
[1644695225809,0.14280659,42658.0,42657.0,0.25987917]
[1644695226006,0.14280659,42658.0,42657.0,0.33334032]
[1644695230757,0.14280659,42658.0,42657.0,0.6026192]
[1644695232308,0.14280659,42658.0,42657.0,0.9301192]
[1644695232507,0.14280659,42658.0,42657.0,0.6026192]
[1644695232705,0.14280659,42658.0,42657.0,0.9301192]
[1644695232908,0.14280659,42658.0,42657.0,0.6026192]
[1644695233508,0.14280659,42658.0,42657.0,0.33334032]
[1644695238358,0.14280659,42658.0,42657.0,0.33910978]
[1644695240012,0.14280659,42658.0,42657.0,2.26153451]
[1644695240212,0.14280659,42658.0,42657.0,0.33910978]
[1644695252160,0.14280659,42658.0,42657.0,0.28910978]
[1644695254021,0.14280659,42658.0,42657.0,0.07346115]
[1644695254826,0.14280659,42658.0,42657.0,0.07146115]
[1644695255824,0.14280659,42658.0,42657.0,0.27439441]
[1644695256925,0.14280659,42658.0,42657.0,0.22439441]
[1644695257762,0.14280659,42658.0,42657.0,0.24232574]
[1644695258968,0.14280659,42658.0,42655.0,0.00054276]
[1644695259360,0.14280659,42658.0,42652.0,0.3275]
[1644695259561,0.14280659,42658.0,42651.0,0.05265897]
[1644695259562,0.14280659,42658.0,42654.0,0.00054277]
[1644695260364,0.3275,42657.0,42654.0,0.00054277]
[1644695260562,0.14280659,42658.0,42651.0,0.00015897]
[1644695260762,0.14280659,42658.0,42654.0,0.00054278]
[1644695261511,0.14280659,42658.0,42654.0,0.08490603]
[1644695261711,0.14280659,42658.0,42654.0,0.08436325]
[1644695261911,0.14280659,42658.0,42654.0,0.08490603]
[1644695262114,0.14280659,42658.0,42655.0,0.3275]
[1644695262313,0.14280659,42658.0,42654.0,2.16763476]
[1644695262810,0.14280659,42658.0,42654.0,2.16709198]
[1644695263011,0.14280659,42658.0,42654.0,2.16763476]
[1644695263212,0.14280659,42658.0,42654.0,0.08490603]
[1644695263412,0.14280659,42658.0,42654.0,0.00054278]
[1644695264612,0.3275,42657.0,42654.0,0.00054278]
[1644695264813,0.14280659,42658.0,42654.0,0.00054278]
[1644695265116,0.3275,42657.0,42654.0,0.00054278]
[1644695265376,0.3275,42657.0,42652.0,0.23638891]
[1644695265576,0.14280659,42658.0,42654.0,0.00054278]
[1644695265778,0.3275,42657.0,42654.0,0.00054278]
[1644695266577,0.3275,42656.0,42652.0,0.23638891]
[1644695266778,0.22203419,42656.0,42653.0,0.00054278]
[1644695266979,0.62854772,42655.0,42653.0,0.00054278]
[1644695267179,0.00108555,42652.0,42650.0,0.44984988]
[1644695267380,0.00108555,42652.0,42650.0,0.44969091]
[1644695269213,0.3275,42651.0,42650.0,0.44969091]
[1644695269412,0.00108555,42652.0,42650.0,0.44969091]
[1644695269813,0.3275,42651.0,42650.0,0.44969091]
[1644695271014,0.3275,42651.0,42650.0,0.44469091]
[1644695274164,0.38,42651.0,42650.0,0.44469091]
[1644695280670,0.3275,42651.0,42650.0,0.44469091]
[1644695284916,0.00108555,42652.0,42650.0,0.44469091]
[1644695285116,0.3275,42651.0,42650.0,0.44469091]
[1644695285515,0.00108555,42652.0,42650.0,0.44469091]
[1644695286121,0.00108555,42652.0,42651.0,0.06593244]
[1644695286316,0.32858555,42652.0,42651.0,0.06593244]
[1644695286918,0.32858555,42652.0,42650.0,0.44469091]
[1644695288167,0.32858555,42652.0,42651.0,0.07234932]
[1644695291510,0.32858555,42652.0,42650.0,0.49569091]
[1644695295016,0.32858555,42652.0,42650.0,0.99569091]
[1644695295864,0.28918645,42651.0,42650.0,0.99569091]
[1644695296063,0.3275,42651.0,42650.0,0.99569091]
[1644695297164,0.3275,42651.0,42650.0,0.34317609]
[1644695304961,0.00108555,42652.0,42650.0,0.34317609]
[1644695305164,0.3275,42651.0,42650.0,0.34317609]
[1644695305763,0.00108555,42652.0,42650.0,0.34317609]
[1644695306165,0.00108555,42652.0,42651.0,0.3275]
[1644695306366,0.00108555,42652.0,42651.0,0.3335428]
[1644695306622,0.23137556,42663.0,42651.0,0.72239767]
[1644695306821,0.2269048,42665.0,42661.0,0.08532853]
[1644695307025,0.19730676,42666.0,42661.0,0.08532853]
[1644695307222,0.19730676,42667.0,42661.0,0.08532853]
[1644695307624,0.3275,42666.0,42661.0,0.08532853]
[1644695308023,0.19730676,42666.0,42661.0,0.08532853]
[1644695308222,0.3275,42665.0,42661.0,0.08532853]
[1644695309826,0.3275,42664.0,42661.0,0.08532853]
[1644695310025,0.058607,42665.0,42661.0,0.08532853]
[1644695310670,0.00020943,42668.0,42661.0,0.08532853]
[1644695310969,0.117215,42669.0,42665.0,0.25474387]
[1644695311177,0.32770943,42668.0,42665.0,0.25474387]
[1644695311373,0.3275,42668.0,42665.0,0.25474387]
[1644695311570,0.3275,42668.0,42661.0,0.08532853]
[1644695311772,0.3275,42667.0,42661.0,0.08532853]
[1644695311969,0.00020943,42668.0,42661.0,0.08532853]
[1644695312174,0.058607,42667.0,42661.0,0.08532853]
[1644695312770,0.058607,42667.0,42662.0,0.23905206]
[1644695313374,0.053607,42667.0,42662.0,0.23905206]
[1644695314821,0.003607,42667.0,42662.0,0.23905206]
[1644695315019,0.003607,42667.0,42663.0,0.25326433]
[1644695316421,0.003607,42667.0,42662.0,0.23905206]
[1644695319261,0.00381643,42667.0,42662.0,0.23905206]
[1644695319462,0.003607,42667.0,42662.0,0.23905206]
[1644695320865,0.00381643,42667.0,42662.0,0.23905206]
[1644695321063,0.00020943,42667.0,42664.0,0.3275]
[1644695321266,0.05434902,42672.0,42662.0,0.23905206]
[1644695321518,0.0002096,42671.0,42662.0,0.23905206]
[1644695321713,0.05380743,42672.0,42662.0,0.23905206]
[1644695321914,0.0002096,42671.0,42662.0,0.23905206]
[1644695322113,0.05434903,42672.0,42662.0,0.23905206]
[1644695322315,0.0002096,42671.0,42662.0,0.23905206]
[1644695322515,0.05434903,42672.0,42662.0,0.23905206]
[1644695322916,0.05380743,42672.0,42662.0,0.23905206]
[1644695323317,0.05434886,42672.0,42662.0,0.23905206]
[1644695324017,0.05434886,42672.0,42670.0,0.07971274]
[1644695324221,0.3275,42671.0,42670.0,0.07971274]
[1644695324619,0.05434886,42672.0,42670.0,0.07971274]
[1644695324822,0.3275,42671.0,42670.0,0.07971274]
[1644695325467,0.05380743,42672.0,42670.0,0.07971274]
[1644695325866,0.3275,42671.0,42670.0,0.07971274]
[1644695326066,0.05380743,42672.0,42670.0,0.07971274]
[1644695327269,0.25253254,42663.0,42662.0,0.21998144]
[1644695327469,0.25253254,42663.0,42662.0,0.61321237]
[1644695337822,0.25253254,42663.0,42662.0,0.66571237]
[1644695338019,0.25253254,42663.0,42662.0,0.70411447]
[1644695338221,0.25253254,42663.0,42662.0,0.66571237]
[1644695339121,0.25253254,42663.0,42662.0,3.15547434]
[1644695339319,0.0002096,42665.0,42663.0,0.4]
[1644695339521,0.0002096,42665.0,42664.0,0.120451]
[1644695339721,0.058593,42674.0,42664.0,0.0525]
[1644695339722,0.0002096,42673.0,42664.0,0.0525]
[1644695339921,0.058593,42674.0,42664.0,0.0525]
[1644695339922,0.0002096,42671.0,42664.0,0.0525]
[1644695340125,0.058593,42674.0,42664.0,0.0525]
[1644695340126,0.00054143,42672.0,42664.0,0.0525]
[1644695340566,0.00075103,42672.0,42664.0,0.0525]
[1644695340768,0.00054143,42672.0,42664.0,0.0525]
[1644695340974,0.0002096,42673.0,42664.0,0.0525]
[1644695341166,0.058593,42674.0,42672.0,0.24230167]
[1644695341369,0.0002096,42673.0,42672.0,0.24230167]
[1644695341568,0.058593,42674.0,42672.0,0.24230167]
[1644695342768,0.058593,42674.0,42672.0,0.32578108]
[1644695342967,0.00075102,42675.0,42672.0,0.32578108]
[1644695343170,0.00054142,42675.0,42672.0,0.32578108]
[1644695343369,0.0002096,42677.0,42672.0,0.32578108]
[1644695343674,0.00054142,42676.0,42672.0,0.32578108]
[1644695344223,0.00054142,42676.0,42673.0,0.3275]
[1644695344423,0.00075102,42676.0,42673.0,0.386081]
[1644695344622,0.0002096,42678.0,42673.0,0.058581]
[1644695344822,0.0002096,42680.0,42673.0,0.058581]
[1644695345028,0.00054141,42677.0,42674.0,0.3275]
[1644695345523,0.00054141,42677.0,42673.0,0.058581]
[1644695345722,0.0002096,42680.0,42674.0,0.3275]
[1644695345922,0.058584,42681.0,42680.0,0.08410447]
[1644695346123,0.058584,42681.0,42680.0,0.08257447]
[1644695346326,0.058584,42681.0,42673.0,0.00604088]
[1644695347624,0.00054139,42679.0,42674.0,0.3275]
[1644695347877,0.00054139,42679.0,42673.0,0.06462188]
[1644695348076,0.00054139,42679.0,42675.0,0.06383812]
[1644695348278,0.00020957,42679.0,42675.0,0.06383812]
[1644695348476,0.00020957,42685.0,42675.0,0.06383812]
[1644695348678,0.39119502,42686.0,42675.0,0.06383812]
[1644695348679,0.39140459,42686.0,42679.0,0.24457767]
[1644695348880,0.058584,42684.0,42682.0,0.08094189]
[1644695349077,0.3275,42683.0,42682.0,0.08094189]
[1644695349480,0.058584,42684.0,42682.0,0.08094189]
[1644695349678,0.3275,42683.0,42682.0,0.08094189]
[1644695351518,0.327506,42683.0,42682.0,0.08094189]
[1644695352217,0.058584,42684.0,42682.0,0.08094189]
[1644695352715,0.327506,42683.0,42682.0,0.08094189]
[1644695352915,0.058584,42684.0,42682.0,0.08094189]
[1644695353116,0.430006,42683.0,42669.0,0.24893931]
[1644695353318,0.430006,42683.0,42664.0,0.24893931]
[1644695353319,0.05,42682.0,42664.0,0.24893931]
[1644695353516,0.058602,42680.0,42664.0,0.1159]
[1644695353716,0.79721,42681.0,42664.0,0.1159]
[1644695353717,0.327506,42678.0,42664.0,0.1159]
[1644695353916,0.327506,42676.0,42664.0,0.1159]
[1644695354119,0.22216345,42672.0,42670.0,0.08348515]
[1644695354315,0.327506,42676.0,42670.0,0.08348515]
[1644695354316,0.380006,42671.0,42670.0,0.08348515]
[1644695357270,0.1094643,42666.0,42664.0,0.1159]
[1644695357472,0.1094643,42666.0,42662.0,0.327506]
[1644695357473,0.1619643,42666.0,42662.0,0.327506]
[1644695357873,0.63565618,42665.0,42656.0,0.48113931]
[1644695358072,0.0525,42664.0,42661.0,0.0708981]
[1644695358272,0.32164649,42663.0,42661.0,0.0708981]
[1644695358472,0.49138749,42663.0,42661.0,0.0708981]
[1644695358674,0.327506,42662.0,42661.0,0.0708981]
[1644695359930,0.380006,42662.0,42661.0,0.0708981]
[1644695372570,0.36437991,42662.0,42661.0,0.0708981]
[1644695387374,0.0282141,42659.0,42656.0,0.08135225]
[1644695387579,0.0868311,42659.0,42656.0,0.08135225]
[1644695391027,0.32755,42658.0,42656.0,0.08135225]
[1644695391226,0.0868311,42659.0,42656.0,0.08135225]
[1644695393974,0.32755,42657.0,42656.0,0.08135225]
[1644695394375,0.32755,42658.0,42656.0,0.08135225]
[1644695394977,0.0868311,42659.0,42656.0,0.08135225]
[1644695395676,0.32755,42658.0,42656.0,0.08135225]
[1644695395876,0.67190261,42658.0,42656.0,0.08135225]
[1644695397123,0.38005,42658.0,42656.0,0.08135225]
[1644695399426,0.38005,42658.0,42656.0,0.27566659]
[1644695399725,0.38005,42658.0,42656.0,0.07635225]
[1644695400390,0.32755,42657.0,42656.0,0.27566659]
[1644695400591,0.38005,42657.0,42656.0,0.27566659]
[1644695400790,0.0525,42657.0,42656.0,0.07635225]
[1644695401291,0.0525,42657.0,42656.0,0.27580042]
[1644695401888,0.38005,42657.0,42656.0,0.07635225]
[1644695402493,0.38005,42657.0,42656.0,0.27580837]
[1644695403292,0.0525,42657.0,42656.0,0.07635225]
[1644695403491,0.0525,42657.0,42656.0,0.12435225]
[1644695403692,0.0868311,42659.0,42656.0,0.12435225]
[1644695403894,0.0868311,42659.0,42658.0,0.19947822]
[1644695404126,0.0868311,42659.0,42658.0,0.46716472]
[1644695404726,0.4143811,42659.0,42658.0,0.46716472]
[1644695405126,0.0868311,42659.0,42658.0,0.46716472]
[1644695405729,0.4143811,42659.0,42658.0,0.46716472]
[1644695405930,0.0868311,42659.0,42658.0,0.2676865]
[1644695406128,0.0868311,42659.0,42658.0,0.46716098]
[1644695406329,0.0868311,42659.0,42658.0,0.2676865]
[1644695406528,0.4143811,42659.0,42658.0,0.2676865]
[1644695408374,0.4143811,42659.0,42658.0,0.46716958]
[1644695408976,0.4143811,42659.0,42658.0,0.2676865]
[1644695409176,0.0868311,42659.0,42658.0,0.2676865]
[1644695410577,0.4143811,42659.0,42658.0,0.2676865]
[1644695410779,0.4143811,42659.0,42658.0,0.26889977]
[1644695411378,0.4143811,42659.0,42658.0,0.46837479]
[1644695412427,0.1094643,42666.0,42658.0,0.53420068]
[1644695412729,0.1094643,42666.0,42664.0,0.19945782]
[1644695412925,0.1094643,42666.0,42665.0,0.327562]
[1644695413128,0.1094643,42666.0,42665.0,0.52701982]
[1644695413426,0.00020957,42670.0,42666.0,0.53194157]
[1644695413627,0.00017802,42672.0,42667.0,0.07716683]
[1644695413628,0.00020957,42669.0,42667.0,0.07716683]
[1644695413930,0.00020957,42671.0,42667.0,0.07716683]
[1644695414128,0.00017802,42672.0,42667.0,0.07716683]
[1644695414327,0.00020957,42671.0,42668.0,0.327562]
[1644695414528,0.00020957,42672.0,42668.0,0.25819672]
[1644695414727,0.00017803,42672.0,42668.0,0.25819672]
[1644695415577,0.00020957,42673.0,42668.0,0.25819672]
[1644695415779,0.00017804,42672.0,42668.0,0.25819672]
[1644695416078,0.00017804,42672.0,42667.0,0.07716683]
[1644695416678,0.00020957,42673.0,42667.0,0.07716683]
[1644695416877,0.05880557,42674.0,42668.0,0.327562]
[1644695417177,0.00056509,42672.0,42669.0,0.60826068]
[1644695417376,0.058596,42674.0,42669.0,0.60826068]
[1644695417377,0.03073126,42674.0,42669.0,0.60826068]
[1644695417579,0.00020957,42673.0,42670.0,0.327562]
[1644695417875,0.03094083,42674.0,42670.0,0.327562]
[1644695418077,0.03094083,42674.0,42671.0,0.327562]
[1644695418278,0.03073126,42674.0,42669.0,0.28069868]
[1644695418477,0.03073126,42674.0,42670.0,0.327562]
[1644695418678,0.03073126,42674.0,42671.0,0.327562]
[1644695418878,0.03073126,42674.0,42669.0,0.28069868]
[1644695419127,0.058592,42678.0,42669.0,0.28069868]
[1644695419323,0.058592,42678.0,42669.0,0.48006677]
[1644695419324,0.00020957,42676.0,42669.0,0.48006677]
[1644695419522,0.05880157,42678.0,42670.0,0.1894253]
[1644695419725,0.00020957,42677.0,42670.0,0.1894253]
[1644695419925,0.058592,42678.0,42670.0,0.1894253]
[1644695420124,0.00020957,42677.0,42670.0,0.1894253]
[1644695420427,0.117201,42677.0,42669.0,0.25237312]
[1644695420623,0.00021299,42676.0,42669.0,0.25237312]
[1644695420923,0.327562,42675.0,42671.0,0.00119698]
[1644695421325,0.32777157,42675.0,42671.0,0.00119698]
[1644695421925,0.32834857,42675.0,42671.0,0.00119698]
[1644695422782,0.32777157,42675.0,42671.0,0.00119698]
[1644695422977,0.181162,42674.0,42671.0,0.00119698]
[1644695423577,0.327562,42673.0,42671.0,0.00119698]
[1644695425978,0.86993222,42672.0,42667.0,0.0783613]
[1644695426179,0.54237022,42672.0,42667.0,0.0783613]
[1644695426378,0.117216,42671.0,42667.0,0.0783613]
[1644695426631,0.327562,42669.0,42667.0,0.0783613]
[1644695426832,0.327562,42668.0,42667.0,0.0783613]
[1644695429930,0.181162,42668.0,42667.0,0.0783613]
[1644695430380,0.181162,42668.0,42667.0,0.0733613]
[1644695430783,0.48689729,42668.0,42667.0,0.00119447]
[1644695430982,0.48689729,42668.0,42659.0,0.78217684]
[1644695430983,0.38618,42665.0,42659.0,0.5733859]
[1644695431183,0.181162,42663.0,42656.0,0.048]
[1644695431382,0.0525,42662.0,42656.0,0.048]
[1644695431584,0.29703918,42661.0,42656.0,0.297512]
[1644695431786,0.0525,42661.0,42656.0,0.297512]
[1644695431982,0.0525,42661.0,42657.0,0.08964757]
[1644695432382,0.111122,42661.0,42657.0,0.08964757]
[1644695432584,0.327562,42659.0,42657.0,0.08964757]
[1644695433584,0.380062,42659.0,42657.0,0.08964757]
[1644695440878,0.380062,42659.0,42658.0,0.00159226]
[1644695441081,0.00057701,42668.0,42660.0,0.327563]
[1644695441283,0.00057701,42668.0,42661.0,0.730063]
[1644695441533,0.00057701,42668.0,42663.0,0.19936809]
[1644695441733,0.00057701,42668.0,42664.0,0.627563]
[1644695441932,0.00057701,42668.0,42666.0,0.08393802]
[1644695442130,0.21490432,42672.0,42667.0,0.327563]
[1644695442330,0.00021353,42668.0,42666.0,0.08393802]
[1644695443331,0.00020957,42677.0,42667.0,0.27359574]
[1644695443532,0.00021353,42669.0,42667.0,0.27359574]
[1644695443732,0.00021353,42669.0,42668.0,0.08189067]
[1644695443932,0.00021353,42669.0,42668.0,0.34329883]
[1644695444533,0.00020957,42671.0,42668.0,0.34329883]
[1644695444733,0.00021353,42671.0,42668.0,0.34329883]
[1644695445579,0.04901868,42672.0,42669.0,0.327563]
[1644695445781,0.04880957,42672.0,42669.0,0.327563]
[1644695445978,0.04938712,42672.0,42669.0,0.00137107]
[1644695446783,0.04880957,42672.0,42669.0,0.00137107]
[1644695447385,0.18735767,42667.0,42666.0,0.28393233]
[1644695448587,0.18735767,42667.0,42666.0,0.36649465]
[1644695450240,0.18735767,42667.0,42666.0,0.08256232]
[1644695450937,0.18735767,42667.0,42666.0,0.07756232]
[1644695451139,0.18735767,42667.0,42666.0,0.68260808]
[1644695451341,0.18735767,42667.0,42666.0,0.73510808]
[1644695451542,0.18735767,42667.0,42666.0,0.90668793]
[1644695452141,0.18735767,42667.0,42666.0,0.62920517]
[1644695453682,0.18735767,42667.0,42666.0,0.87851429]
[1644695455083,0.18735767,42667.0,42666.0,0.88455583]
[1644695455886,0.18735767,42667.0,42666.0,0.88586642]
[1644695457139,0.18735767,42667.0,42666.0,0.92169531]
[1644695457338,0.18735767,42667.0,42666.0,0.88586642]
[1644695457838,0.18735767,42667.0,42666.0,0.63051576]
[1644695458039,0.18735767,42667.0,42666.0,0.93093165]
[1644695460882,0.18735767,42667.0,42666.0,1.13016718]
[1644695461087,0.18735767,42667.0,42666.0,0.44968829]
[1644695461283,0.18735767,42667.0,42666.0,0.07887291]
[1644695462785,0.18735767,42667.0,42666.0,0.40643591]
[1644695462985,0.18735767,42667.0,42666.0,0.70643591]
[1644695463185,0.18735767,42667.0,42666.0,0.57810975]
[1644695463384,0.18735767,42667.0,42666.0,0.37887291]
[1644695463385,0.18235767,42667.0,42666.0,0.37887291]
[1644695463590,0.18235767,42667.0,42666.0,0.07887291]
[1644695464027,0.18235767,42667.0,42666.0,0.40643591]
[1644695464227,0.18235767,42667.0,42666.0,0.07887291]
[1644695464728,0.18235767,42667.0,42666.0,0.27810415]
[1644695465129,0.18235767,42667.0,42666.0,0.07887291]
[1644695468280,0.18235767,42667.0,42666.0,0.13746991]
[1644695468481,0.18235767,42667.0,42666.0,0.46503291]
[1644695468682,0.18235767,42667.0,42666.0,0.84209761]
[1644695469279,0.18235767,42667.0,42666.0,0.64286637]
[1644695470081,0.18235767,42667.0,42666.0,0.84209794]
[1644695470280,0.18235767,42667.0,42666.0,0.66426448]
[1644695470480,0.18235767,42667.0,42666.0,0.33670148]
[1644695471082,0.18235767,42667.0,42666.0,0.13746991]
[1644695471742,0.18235767,42667.0,42666.0,0.27810448]
[1644695471943,0.18235767,42667.0,42666.0,0.07887291]
[1644695476288,0.18235767,42667.0,42666.0,0.46389623]
[1644695476689,0.18235767,42667.0,42666.0,0.40643591]
[1644695476888,0.18235767,42667.0,42666.0,0.60567961]
[1644695477090,0.18235767,42667.0,42666.0,0.5954149]
[1644695478088,0.18235767,42667.0,42666.0,0.2678519]